Cogmind - Beta 13 @@@ ROGUE MODE // 2024.04.01 @ 02:15:16 Player: lazy_engineer Result: Self-destructed Performance ------------- Evolutions (2) 1000 Regions Visited (4) 800 Robots Destroyed (6) 30 Value Destroyed (48) 48 Prototype IDs (2) 40 Alien Tech Used (0) 0 Bonus (0) 0 TOTAL SCORE: 1918 Bonus ------- None Cogmind --------- Core Integrity 521/550 Matter 98/300 Energy 14/100 System Corruption 0% Temperature Cool (-100) Movement Flying (115) Ox1 Location -8/Materials Parts ------- > --- POWER (1) -------- (None) > --- PROPULSION (3) --- Cesium-ion Thruster > --- UTILITY (5) ------ Cryofiber Web Small Storage Unit Structural Scanner Seismic Detector > --- WEAPON (2) ------- Precision Beam Rifle > --- INVENTORY (8) ---- ECM Suite Hardened Light Armor Plating Medium Laser Medium Laser Grenade Launcher Improved Datajack Welding Torch Peak State ------------ > --- POWER ------------ Light Ion Engine > --- PROPULSION ------- Flight Unit Flight Unit Cesium-ion Thruster > --- UTILITY ---------- Cryofiber Web Small Storage Unit Structural Scanner Seismic Detector > --- WEAPON ----------- Precision Beam Rifle Improved Datajack > --- INVENTORY -------- ECM Suite Hardened Light Armor Plating Medium Laser Medium Laser Grenade Launcher Welding Torch [Rating: 19] Favorites ----------- Power Light Ion Engine Engine Light Ion Engine Propulsion Wheel Wheel Wheel Flight Unit Flight Unit Utility Small Storage Unit Device Seismic Detector Storage Small Storage Unit Weapon Medium Laser Energy Gun Medium Laser Special Weapon Mining Laser Special Melee Weapon Improved Datajack Build | -11 -10 -10 -9 -8 ------- Run | Yrd Mat Min Mat Mat Slots Evolved 4 | . . . 2 2 Power . | . . . . . Propulsion 1 | . . . . 1 Utility 3 | . . . 2 1 Weapon . | . . . . . Parts Attached 31 | 6 1 4 8 12 Power 3 | 1 . . 1 1 Engine 3 | 1 . . 1 1 Core . | . . . . . Reactor . | . . . . . Propulsion 10 | 2 . 2 3 3 Treads . | . . . . . Leg . | . . . . . Wheel 3 | 2 . . 1 . Hover . | . . . . . Flight 7 | . . 2 2 3 Utility 6 | 1 1 1 1 2 Device 5 | . 1 1 1 2 Storage 1 | 1 . . . . Processor . | . . . . . Hackware . | . . . . . Protection . | . . . . . Artifact . | . . . . . Weapon 12 | 2 . 1 3 6 Energy Gun 7 | 2 . . 2 3 Energy Cannon . | . . . . . Ballistic Gun . | . . . . . Ballistic Cannon . | . . . . . Launcher . | . . . . . Special Weapon 3 | . . 1 1 1 Impact Weapon . | . . . . . Slashing Weapon . | . . . . . Piercing Weapon . | . . . . . Special Melee Weapon 2 | . . . . 2 Unidentified Prototypes 2 | . . . 1 1 Parts Lost 7 | . . 3 1 3 Power 2 | . . 1 . 1 Propulsion 4 | . . 2 . 2 Utility . | . . . . . Weapon 1 | . . . 1 . Highest Loss Streak 3 | . . 3 1 3 To Critical Strikes . | . . . . . Average Slot Usage (%) 65 | . 99 66 39 58 Engine 7 | . 14 12 . 6 Wheel 12 | . 28 6 9 . Flight 7 | . . 17 1 19 Device 10 | . 13 3 10 14 Storage 12 | . 14 14 11 9 Energy Gun 11 | . 28 6 5 . Special Weapon 1 | . . 6 1 . Special Melee Weapon 1 | . . . . 7 Naked Turns . | . . . . . Heaviest Build 14 | 12 14 13 10 14 Greatest Support 20 | 20 20 20 10 13 Greatest Overweight (x) 2 | . . 2 1 1 Average Overweight (x) . | . . . . . Largest Inventory Capacity 8 | 8 8 8 8 8 Average Capacity 7 | 7 8 8 8 8 Most Carried 8 | 3 5 7 7 8 Average Carried 4 | 1 4 5 4 7 Final Capacity 8 | 8 8 8 8 8 Final Carried 7 | 3 5 6 5 7 Class Distribution -------------------- 100% | Mutant Dominant Class ---------------- Mutant | -10/Materials Mutant | -10/Mines Mutant | -9/Materials Mutant | -8/Materials Resources | -11 -10 -10 -9 -8 ----------- Run | Yrd Mat Min Mat Mat Matter Collected 273 | 260 . . . 13 Remotely . | . . . . . Salvage Created 143 | 81 . 49 . 13 Parts 13 | 6 . 3 . 4 Haulers Intercepted . | . . . . . Recyclers Shooed . | . . . . . Parts Field Recycled . | . . . . . Retrieved Matter . | . . . . . Parts Self-Destructed . | . . . . . Prevented . | . . . . . Kills | -11 -10 -10 -9 -8 ------- Run | Yrd Mat Min Mat Mat Combat Hostiles Destroyed 3 | . . 3 . . Guns 3 | . . 3 . . Classes Destroyed 4 | 2 . 1 . 1 Builder 1 | . . . . 1 Tunneler 1 | 1 . . . . Recycler 1 | 1 . . . . Swarmer 3 | . . 3 . . Best Kill Streak 3 | 1 . 3 . 1 Combat Bots Only 3 | . . 3 . . Max Kills in Single Turn 1 | 1 . 1 . 1 Gunslinging . | . . . . . Exploded . | . . . . . Melee . | . . . . . Uniques/NPCs Destroyed . | . . . . . Combat | -11 -10 -10 -9 -8 -------- Run | Yrd Mat Min Mat Mat Hostile Shots Fired 58 | . 2 33 11 12 Missed 10 | . . 3 3 4 Damage Taken 556 | . 21 319 91 125 Core 205 | . 10 156 10 29 Absorbed by Shields . | . . . . . Core Remaining (%) 76 | 100 . 33 97 . Volleys Fired 14 | 3 . 6 2 3 Largest 2 | 2 . 2 2 1 Hottest 150 | 100 . 100 150 50 Shots Fired 22 | 6 . 9 4 3 Gun 16 | 6 . 6 3 1 Cannon . | . . . . . Launcher . | . . . . . Special 6 | . . 3 1 2 Kinetic . | . . . . . Thermal 22 | 6 . 9 4 3 Explosive . | . . . . . Electromagnetic . | . . . . . Robot Hit Streak 5 | 4 . 5 3 4 Robot Miss Streak 1 | . . 1 . . Penetration Max . | . . . . . Secondary Targets 1 | . . 1 . . Max Gunslinging Chain 1 | . . 1 . . Shots Hit Robots 13 | 4 . 4 2 3 Core Hits 7 | 3 . 3 . 1 Critical Kills . | . . . . . Critical Parts Destroyed . | . . . . . Critical Strikes . | . . . . . Melee Attacks 3 | . . . . 3 Impact . | . . . . . Slashing . | . . . . . Piercing . | . . . . . Sneak Attacks 1 | . . . . 1 Combat Hostiles . | . . . . . Follow-up Attacks . | . . . . . Damage Inflicted 139 | 50 . 50 26 13 Guns 139 | 50 . 50 26 13 Cannons . | . . . . . Explosions . | . . . . . Melee . | . . . . . Ramming . | . . . . . Kinetic . | . . . . . Thermal 139 | 50 . 50 26 13 Explosive . | . . . . . Electromagnetic . | . . . . . Impact . | . . . . . Slashing . | . . . . . Piercing . | . . . . . Highest Corruption 1 | . 1 1 . . Average Corruption 1 | . 1 1 . . Corruption Purged . | . . . . . Corruption Blocked . | . . . . . Effects 1 | . . 1 . . Message Errors 1 | . . 1 . . Overload Shots . | . . . . . Overflow Damage . | . . . . . Projectiles . | . . . . . Explosions . | . . . . . Melee . | . . . . . Knockbacks . | . . . . . Impact . | . . . . . Kinetic . | . . . . . Secondary . | . . . . . Self-Inflicted Damage . | . . . . . Shots . | . . . . . Rammed . | . . . . . Targets Rammed . | . . . . . Kicked . | . . . . . Crushed . | . . . . . Highest Temperature 117 | 78 . 117 15 . Average Temperature 41 | 37 . 51 7 . Received Heat Transfer 177 | . 12 96 69 . Siege Activations . | . . . . . Robots Corrupted . | . . . . . Combat Hostiles . | . . . . . Parts Fried . | . . . . . Impact Corruptions . | . . . . . Robots Melted . | . . . . . Combat Hostiles . | . . . . . Parts Melted . | . . . . . Heat Transferred 407 | 148 . 148 74 37 Parts Sabotaged . | . . . . . Parts Stolen . | . . . . . Parts Stripped . | . . . . . Power Chain Reactions . | . . . . . Alert | -11 -10 -10 -9 -8 ------- Run | Yrd Mat Min Mat Mat Peak Influence 96 | 10 32 84 96 77 Initial 42 | . 6 12 20 42 Average 40 | 3 13 75 53 52 Maximum Alert Level . | . . . . . Low Security (%) 100 | 100 100 100 100 100 Level 1 . | . . . . . Level 2 . | . . . . . Level 3 . | . . . . . Level 4 . | . . . . . Level 5 . | . . . . . High Security . | . . . . . Max Security . | . . . . . Squads Dispatched 2 | . 1 . 1 . Investigation 1 | . 1 . . . Extermination . | . . . . . Reinforcement 1 | . . . 1 . Assault . | . . . . . Garrison . | . . . . . Intercept . | . . . . . Searches Triggered . | . . . . . Construction Impeded . | . . . . . Haulers Reinforced . | . . . . . Active Scanning Responses . | . . . . . Cargo Convoy Interrupts . | . . . . . Stealth | -11 -10 -10 -9 -8 --------- Run | Yrd Mat Min Mat Mat Distress Signals 1 | . . . . 1 Communications Jammed . | . . . . . Distress Signals . | . . . . . Times Spotted 30 | . 5 8 14 3 Peak Tracking Total 7 | . 2 5 7 3 Tactical Retreats 4 | . 2 . 2 . Traps | -11 -10 -10 -9 -8 ------- Run | Yrd Mat Min Mat Mat Traps Triggered . | . . . . . Indirectly . | . . . . . Trap Hack Attempts . | . . . . . Triggered . | . . . . . Disarmed . | . . . . . Reprogrammed . | . . . . . Reused . | . . . . . Traps Extracted . | . . . . . Installed . | . . . . . Triggered . | . . . . . Machines | -11 -10 -10 -9 -8 ---------- Run | Yrd Mat Min Mat Mat Machines Disabled . | . . . . . Max in Single Turn . | . . . . . Machines Repaired . | . . . . . Machines Dismantled . | . . . . . Machines Sabotaged . | . . . . . Overloaded Fab Kills . | . . . . . Hacking | -11 -10 -10 -9 -8 --------- Run | Yrd Mat Min Mat Mat Machines Accessed 6 | . 5 . . 1 Terminals 4 | . 3 . . 1 Fabricators . | . . . . . Repair Stations . | . . . . . Recycling Units 2 | . 2 . . . Scanalyzers . | . . . . . Garrison Access . | . . . . . Total Hacks 19 | . 17 . . 2 Successful 8 | . 7 . . 1 Failed 11 | . 10 . . 1 Catastrophic 4 | . 3 . . 1 Database Lockouts . | . . . . . Manual . | . . . . . Terminals 15 | . 13 . . 2 Fabricators . | . . . . . Repair Stations . | . . . . . Recycling Units 4 | . 4 . . . Scanalyzers . | . . . . . Garrison Access . | . . . . . Terminal Hacks 6 | . 5 . . 1 Alert Level 2 | . 1 . . 1 Locate Traps 2 | . 2 . . . Dispatch Records 1 | . 1 . . . Registered Components 1 | . 1 . . . Fabricator Hacks . | . . . . . Repair Station Hacks . | . . . . . Recycling Unit Hacks 2 | . 2 . . . Report Inventory 2 | . 2 . . . Scanalyzer . | . . . . . Garrison Access Hacks . | . . . . . Unauthorized Hacks . | . . . . . Terminals . | . . . . . Fabricators . | . . . . . Repair Stations . | . . . . . Recycling Units . | . . . . . Scanalyzers . | . . . . . Garrison Access . | . . . . . Data Cores Recovered . | . . . . . Used . | . . . . . Hacking Detections 5 | . 4 . . 1 Full Trace Events 4 | . 4 . . . Feedback Events 1 | . 1 . . . Corruption 1 | . 1 . . . Feedback Blocked . | . . . . . Robot Schematics Acquired . | . . . . . Robots Built . | . . . . . Authchips . | . . . . . Time . | . . . . . Total Robot Build Rating . | . . . . . Part Schematics Acquired . | . . . . . Parts Built . | . . . . . Authchips . | . . . . . Time . | . . . . . Total Part Build Rating . | . . . . . Parts Repaired . | . . . . . Time . | . . . . . Parts Recycled . | . . . . . Recycled Matter . | . . . . . Retrieved Matter . | . . . . . Retrieved Components . | . . . . . Parts Scanalyzed . | . . . . . Part Schematics Acquired . | . . . . . Parts Damaged . | . . . . . Bothacking | -11 -10 -10 -9 -8 ------------ Run | Yrd Mat Min Mat Mat Used RIF Installer . | . . . . . Robots Hacked 1 | . . . . 1 Non-combat 1 | . . . . 1 Combat . | . . . . . Robot Hacks Applied 1 | . . . . 1 no_distress 1 | . . . . 1 Relay Couplers Released . | . . . . . Fabnet Peak Effective % . | . . . . . Robots Rewired . | . . . . . Allies Hacked . | . . . . . Hacks Repelled . | . . . . . Allies | -11 -10 -10 -9 -8 -------- Run | Yrd Mat Min Mat Mat Total Allies . | . . . . . Largest Group . | . . . . . Highest-Rated Group . | . . . . . Highest-Rated Ally . | . . . . . Total Orders . | . . . . . Ally Attacks . | . . . . . Total Damage . | . . . . . Kills . | . . . . . Allies Corrupted . | . . . . . Allies Melted . | . . . . . Intel | -11 -10 -10 -9 -8 ------- Run | Yrd Mat Min Mat Mat Robot Analysis Total . | . . . . . Derelict Logs Recovered . | . . . . . Drone Launches . | . . . . . Drone Recoveries . | . . . . . Exploration | -11 -10 -10 -9 -8 ------------- Run | Yrd Mat Min Mat Mat Turns Passed 578 | 62 152 90 169 105 Spaces Moved 598 | 50 185 73 186 104 Core 15 | 6 . 5 4 . Treads . | . . . . . Legs . | . . . . . Wheels 403 | 44 185 3 171 . Hover . | . . . . . Flight 180 | . . 65 11 104 Fastest Speed 32 | 50 80 37 37 32 Average Speed 76 | 76 80 76 78 66 Slowest Speed 200 | 80 80 200 117 117 Overloaded Moves . | . . . . . Propulsion Burnouts . | . . . . . Robots Hopped . | . . . . . Cave-ins Triggered . | . . . . . Exploration Rate (%) 16 | 4 32 11 22 12 Regions Visited 4 Branch Regions 1 Pre-discovered Areas . | . . . . . Known Exits Taken . | . . . . . Unknown Exits Taken 4 | 1 1 1 1 . Scrap Searched . | . . . . . Spaces Dug 4 | . . 3 1 . Terrain Destroyed 4 | . . 3 1 . Melee . | . . . . . Projectile 4 | . . 3 1 . AOE . | . . . . . Terrain Rammed . | . . . . . Walls Destroyed . | . . . . . Machines Disabled . | . . . . . Actions | -11 -10 -10 -9 -8 --------- Run | Yrd Mat Min Mat Mat Total 691 | 67 188 94 204 138 Wait 5 | . . 2 . 3 Move 594 | 49 184 72 185 104 Hop . | . . . . . Pick Up 25 | 9 3 2 5 6 Fast Attach 3 | . . . . 3 Attach 25 | 6 1 1 8 9 Detach 11 | . . 4 2 5 Swap 3 | . . 3 . . Drop 8 | . . 4 2 2 Fire 14 | 3 . 6 2 3 Melee 3 | . . . . 3 Ram . | . . . . . Kick . | . . . . . Crush . | . . . . . Escape Stasis . | . . . . . Rewire . | . . . . . Trap . | . . . . . Miscellaneous . | . . . . . Route ------- -11/Scrapyard -10/Materials -10/Mines -9/Materials -8/Materials (discovered 1 exit: [*Sto]) History --------- Turn | Location | Event 18 | -11/Scrapyard | Discovered new exit (range 16) 63 | -11/Scrapyard | Entered Materials 188 | -10/Materials | Discovered new exit (range 16) 215 | -10/Materials | Entered Mines 241 | -10/Mines | Discovered new exit (range 10) 302 | -10/Mines | Core integrity fell below 50% 305 | -10/Mines | Entered Materials 305 | -9/Materials | Evolved 2 slots: Utility x2 329 | -9/Materials | Lost 3 parts (1p2n) 352 | -9/Materials | Build established: Mutant 472 | -9/Materials | Discovered new exit (range 3) 474 | -9/Materials | Entered another Materials area 474 | -8/Materials | Evolved 2 slots: Propulsion x1, Utility x1 509 | -8/Materials | Discovered new exit (range 16) 579 | -8/Materials | Self-destructed Last Messages --------------- Acquired Welding Torch. Acquired 13 matter. EXIT=FOUND Dropped Flight Unit. Acquired Cesium-ion Thruster. Acquired Flight Unit. Acquired Prototype Energy Gun. Identified Prc. Beam Rifle. Slug penetrates Wall. Matter Filter disabled. W-25 Informer sends out distress signal. Jacked W-25 Informer... Slug penetrates Wall. Slug penetrates Terminal. Terminal disabled. Flight Unit destroyed. Penetrated by Slug. Lgt. Ion Engine destroyed. Penetrated by Slug. Flight Unit destroyed. Map ----- +----------------------------------------------------+ | ?????????????????? # #????????????# # | | ?????????????????? # #????????????# # | | ??????????????????# ## #????????????# """ # | | ??????????????????# ## ############## """ # | | ????????????????? # ## ! """ # | | ????????????????? + ## """ # | | ????????????????? # ## """ # | | ????????????????? # ## # | | ???????????######## ## """ # | | ???????????# ! # ## """ # | | ???????????# # ## """ "T" # | | ???????????# """ # ## """ # | | ???????????# """ / ## ######+####+### | | ???????????# """ # ## """ ##????????????? | | ???????????# # ## """ ##????????????? | | ???????????######## ## = """ ##????????????? | | ????????????????## # ##????????????? | | ????????????????## ##????????????? | | ????????????????## ! ##????????????? | | ????????????????## ##????????????? | | ??????????????#### ###+### ##????????????? | | ??????????????######+#### #### ##????????????? | | ??????????????## # ""##?# #?????????????? | | ??????????????## %""""#hhT"##?# #?????????????? | | ??????????????## """""# "##?? #?????????????? | | ??????????????## """""#@ ##?? #?????????????? | | ??????????????## """""# ##?? #?????????????? | | ??????????????## """""#!!! ##?? #?????????????? | | ??????????????## """""#!! ##?? #?????????????? | | ??????????????## """""#!! ]##??? ?????????????? | | ??????????????## #######??? ?????????????? | | ??????????????#################??? #?????????????? | | ??????????????############???????? ??????????????? | | ?????????????????????????????????????????????????? | | ?????????????????????????????????????????????????? | | ?????????????????????????????????????????????????? | | ?????????????????????????????????????????????????? | | ?????????????????????????????????????????????????? | | ?????????????????????????????????????????????????? | | ?????????????????????????????????????????????????? | | ?????????????????????????????????????????????????? | | ?????????????????????????????????????????????????? | | ?????????????????????????????????????????????????? | | ?????????????????????????????????????????????????? | | ?????????????????????????????????????????????????? | | ?????????????????????????????????????????????????? | | ?????????????????????????????????????????????????? | | ?????????????????????????????????????????????????? | | ?????????????????????????????????????????????????? | | ?????????????????????????????????????????????????? | +----------------------------------------------------+ Best States ------------- Heat Dissipation 31 Energy Generation 10 Energy Capacity 125 Matter Stores 300 Matter Capacity 300 Sight Range 16 Terrain Scan Density 10 ECM Strength 1 Base Temperature (-) 100 Evasion (%) 63 Item Schematics ----------------- None Robot Schematics ------------------ None Fabricated ------------ Nothing Alien Tech Used ----------------- None Achievements -------------- None Challenges ------------ None Game ------ Seed ChainCorruptionDoublenader Manual? 0 Play Time 00:14:40 Cumulative 5.5 hours Start 2024.04.01 @ 02:01:35 End 2024.04.01 @ 02:15:16 Sessions 1 Manual Loads 0 Difficulty Rogue Special Mode None Game No. 9 Rogue 9 Adventurer 0 Explorer 0 Win Type - Total 0 Types 0/0/0/0/0/0/0/0/0 Lore% 11 Gallery% 10 Achievement% 12 Wizard Run 0 Options --------- Layout 1 ASCII 0 Keyboard 0 Movement Mouse Keybinds 0 Fullscreen 1 Font 32/SmallcapsGlow Map View 50x35 Zoom Use 0% Tactical HUD 0 Map Filters NONE Filters NONE Steam 1 RUN: b87c709f-55c1-4efb-bd0c-5369e94681f4